[Event "Titled Tuesday Blitz November 01 Late 2022"]
[White "Kobla, Vishal"]
[Black "Sanchez Enriquez, Oscar Gerardo"]
[WhiteFideId "2078457"]
[BlackFideId "5106311"]
[WhiteElo "1972"]
[BlackElo "2375"]
[Result "0-1"]
[Round "08"]
[TimeControl "180+1"]
[Date "2022.11.02"]
[WhiteClock "0:00:05"]
[BlackClock "0:00:28"]

1. e4 {[%clk 0:02:59]}  d6 {[%clk 0:03:00]} 2. d4 {[%clk 0:02:59]}  Nf6 {[%clk 0:03:00]} 3. Nc3 {[%clk 0:03:00]}  g6 {[%clk 0:03:01]} 4. Be3 {[%clk 0:02:56]}  c6 {[%clk 0:03:01]} 5. f3 {[%clk 0:02:57]}  Nbd7 {[%clk 0:03:01]} 6. a4 {[%clk 0:02:55]}  Qa5 {[%clk 0:03:01]} 7. Qd2 {[%clk 0:02:55]}  b5 {[%clk 0:03:00]} 8. b4 {[%clk 0:02:52]}  Qxb4 {[%clk 0:03:00]} 9. Rb1 {[%clk 0:02:53]}  Qa5 {[%clk 0:03:00]} 10. axb5 {[%clk 0:02:53]}  c5 {[%clk 0:03:01]} 11. Nge2 {[%clk 0:02:51]}  Bg7 {[%clk 0:02:59]} 12. d5 {[%clk 0:02:39]}  O-O {[%clk 0:02:59]} 13. Nf4 {[%clk 0:02:39]}  Ng4 {[%clk 0:02:52]} 14. Nd1 {[%clk 0:01:59]}  Qa2 {[%clk 0:02:45]} 15. Rb3 {[%clk 0:01:50]}  Nxe3 {[%clk 0:02:41]} 16. Nxe3 {[%clk 0:01:50]}  a6 {[%clk 0:02:34]} 17. b6 {[%clk 0:01:49]}  Rb8 {[%clk 0:02:33]} 18. Nc4 {[%clk 0:01:45]}  Ne5 {[%clk 0:02:22]} 19. Kf2 {[%clk 0:01:15]}  Nxc4 {[%clk 0:02:09]} 20. Bxc4 {[%clk 0:01:16]}  Qa4 {[%clk 0:02:09]} 21. Qd3 {[%clk 0:01:11]}  Bd4+ {[%clk 0:01:59]} 22. Ke2 {[%clk 0:01:11]}  f5 {[%clk 0:01:53]} 23. Rf1 {[%clk 0:01:01]}  fxe4 {[%clk 0:01:51]} 24. fxe4 {[%clk 0:00:59]}  Bg4+ {[%clk 0:01:51]} 25. Kd2 {[%clk 0:00:55]}  Qa5+ {[%clk 0:01:42]} 26. c3 {[%clk 0:00:48]}  Be5 {[%clk 0:01:42]} 27. Ne6 {[%clk 0:00:39]}  Bxe6 {[%clk 0:01:43]} 28. dxe6 {[%clk 0:00:28]}  Rxb6 {[%clk 0:01:37]} 29. Rxf8+ {[%clk 0:00:27]}  Kxf8 {[%clk 0:01:38]} 30. Qf3+ {[%clk 0:00:19]}  Bf6 {[%clk 0:01:37]} 31. e5 {[%clk 0:00:11]}  dxe5 {[%clk 0:01:38]} 32. Qa8+ {[%clk 0:00:11]}  Kg7 {[%clk 0:01:37]} 33. Qe8 {[%clk 0:00:09]}  Rxb3 {[%clk 0:01:27]} 34. Bxb3 {[%clk 0:00:09]}  e4 {[%clk 0:01:25]} 35. Qf7+ {[%clk 0:00:09]}  Kh6 {[%clk 0:01:25]} 36. Qf8+ {[%clk 0:00:09]}  Kg5 {[%clk 0:01:25]} 37. h4+ {[%clk 0:00:08]}  Kg4 {[%clk 0:01:09]} 38. Bd1+ {[%clk 0:00:07]}  Kf5 {[%clk 0:01:02]} 39. g4+ {[%clk 0:00:07]}  Kxe6 {[%clk 0:01:01]} 40. Qg8+ {[%clk 0:00:06]}  Kd7 {[%clk 0:00:58]} 41. Qd5+ {[%clk 0:00:06]}  Kc7 {[%clk 0:00:58]} 42. Qc4 {[%clk 0:00:03]}  Qb5 {[%clk 0:00:52]} 43. Qxe4 {[%clk 0:00:03]}  Bxh4 {[%clk 0:00:50]} 44. g5 {[%clk 0:00:02]}  Qd7+ {[%clk 0:00:47]} 45. Kc2 {[%clk 0:00:02]}  Qh3 {[%clk 0:00:40]} 46. Bg4 {[%clk 0:00:03]}  Qh2+ {[%clk 0:00:39]} 47. Kb3 {[%clk 0:00:03]}  Qd6 {[%clk 0:00:38]} 48. Be6 {[%clk 0:00:03]}  Bg3 {[%clk 0:00:35]} 49. Bc4 {[%clk 0:00:03]}  Be5 {[%clk 0:00:34]} 50. Qa8 {[%clk 0:00:03]}  Qb6+ {[%clk 0:00:34]} 51. Kc2 {[%clk 0:00:04]}  Qb7 {[%clk 0:00:33]} 52. Qf8 {[%clk 0:00:03]}  Qe4+ {[%clk 0:00:33]} 53. Bd3 {[%clk 0:00:04]}  Qa4+ {[%clk 0:00:32]} 54. Kd2 {[%clk 0:00:04]}  Qa2+ {[%clk 0:00:29]} 55. Bc2 {[%clk 0:00:05]}  Qd5+ {[%clk 0:00:30]} 56. Kc1 {[%clk 0:00:05]}  Bxc3 {[%clk 0:00:28]} 57. Qxe7+ {[%clk 0:00:06]}  Qd7 {[%clk 0:00:28]} 58. Qxc5+ {[%clk 0:00:05]}  Qc6 {[%clk 0:00:29]} 59. Be4 {[%clk 0:00:05]}  Qxc5 {[%clk 0:00:28]} 0-1


[Site "https://www.chess.com"]

[Event "Titled Tuesday Blitz November 01 Late 2022"]
[White "Krzyzanowski, Marcin"]
[Black "Zivkovic, Nemanja"]
[WhiteFideId "1132199"]
[BlackFideId "942154"]
[WhiteElo "2435"]
[BlackElo "2372"]
[Result "0-1"]
[Round "08"]
[TimeControl "180+1"]
[Date "2022.11.01"]
[WhiteClock "0:00:03"]
[BlackClock "0:00:22"]

1. d4 {[%clk 0:03:00]}  Nf6 {[%clk 0:02:49]} 2. Bf4 {[%clk 0:03:00]}  e6 {[%clk 0:02:48]} 3. c3 {[%clk 0:03:00]}  c5 {[%clk 0:02:48]} 4. Nf3 {[%clk 0:02:58]}  cxd4 {[%clk 0:02:48]} 5. cxd4 {[%clk 0:02:58]}  d6 {[%clk 0:02:48]} 6. Nc3 {[%clk 0:02:58]}  a6 {[%clk 0:02:48]} 7. e4 {[%clk 0:02:58]}  b5 {[%clk 0:02:46]} 8. e5 {[%clk 0:02:57]}  dxe5 {[%clk 0:02:44]} 9. dxe5 {[%clk 0:02:58]}  Qxd1+ {[%clk 0:02:25]} 10. Rxd1 {[%clk 0:02:58]}  Nfd7 {[%clk 0:02:25]} 11. Ne4 {[%clk 0:02:50]}  Bb7 {[%clk 0:02:24]} 12. Nd6+ {[%clk 0:02:50]}  Bxd6 {[%clk 0:02:24]} 13. Rxd6 {[%clk 0:02:51]}  Bd5 {[%clk 0:02:16]} 14. Nd4 {[%clk 0:02:46]}  Nc5 {[%clk 0:02:12]} 15. b4 {[%clk 0:02:39]}  Ne4 {[%clk 0:02:10]} 16. Rxd5 {[%clk 0:02:16]}  exd5 {[%clk 0:02:08]} 17. Bd3 {[%clk 0:02:06]}  O-O {[%clk 0:02:01]} 18. f3 {[%clk 0:01:58]}  Nc3 {[%clk 0:02:00]} 19. Bd2 {[%clk 0:01:53]}  Na4 {[%clk 0:01:57]} 20. f4 {[%clk 0:01:51]}  Nd7 {[%clk 0:01:55]} 21. Nc6 {[%clk 0:01:46]}  Rfe8 {[%clk 0:01:53]} 22. Ke2 {[%clk 0:01:40]}  Nab6 {[%clk 0:01:50]} 23. Be3 {[%clk 0:01:26]}  Nc4 {[%clk 0:01:49]} 24. Bd4 {[%clk 0:01:26]}  Rac8 {[%clk 0:01:45]} 25. Bf5 {[%clk 0:01:22]}  Rc7 {[%clk 0:01:40]} 26. Rc1 {[%clk 0:01:18]}  f6 {[%clk 0:01:21]} 27. Bxd7 {[%clk 0:01:10]}  Rxd7 {[%clk 0:01:18]} 28. Kf2 {[%clk 0:00:43]}  fxe5 {[%clk 0:01:13]} 29. Nxe5 {[%clk 0:00:43]}  Rde7 {[%clk 0:01:05]} 30. Rc3 {[%clk 0:00:42]}  Rf8 {[%clk 0:00:55]} 31. Kg3 {[%clk 0:00:37]}  Re6 {[%clk 0:00:49]} 32. h4 {[%clk 0:00:30]}  h5 {[%clk 0:00:48]} 33. Rd3 {[%clk 0:00:23]}  Nd6 {[%clk 0:00:46]} 34. Kf3 {[%clk 0:00:14]}  Nf5 {[%clk 0:00:46]} 35. Bf2 {[%clk 0:00:10]}  Rd8 {[%clk 0:00:43]} 36. g4 {[%clk 0:00:04]}  hxg4+ {[%clk 0:00:38]} 37. Kxg4 {[%clk 0:00:05]}  Nh6+ {[%clk 0:00:35]} 38. Kf3 {[%clk 0:00:05]}  Nf5 {[%clk 0:00:33]} 39. Kg4 {[%clk 0:00:06]}  Ne7 {[%clk 0:00:32]} 40. Bc5 {[%clk 0:00:05]}  Nc6 {[%clk 0:00:29]} 41. Nf3 {[%clk 0:00:04]}  Re4 {[%clk 0:00:26]} 42. Ng5 {[%clk 0:00:03]}  Ne5+ {[%clk 0:00:22]} 0-1


[Site "https://www.chess.com"]

[Event "Titled Tuesday Blitz November 01 Late 2022"]
[White "Lehtosaari, Mauri"]
[Black "Rosenberg, Evan S"]
[WhiteFideId "501999"]
[BlackFideId "2019299"]
[WhiteElo "2497"]
[BlackElo "2379"]
[Result "1-0"]
[Round "08"]
[TimeControl "180+1"]
[Date "2022.11.02"]
[WhiteClock "0:00:06"]
[BlackClock "0:00:34"]

1. d4 {[%clk 0:03:00]}  d5 {[%clk 0:02:59]} 2. Nf3 {[%clk 0:03:01]}  Bf5 {[%clk 0:02:58]} 3. c4 {[%clk 0:02:57]}  e6 {[%clk 0:02:59]} 4. Nc3 {[%clk 0:02:57]}  Nf6 {[%clk 0:02:59]} 5. Bg5 {[%clk 0:02:56]}  Nc6 {[%clk 0:02:37]} 6. e3 {[%clk 0:02:51]}  h6 {[%clk 0:02:34]} 7. Bh4 {[%clk 0:02:47]}  a6 {[%clk 0:02:22]} 8. Qb3 {[%clk 0:02:26]}  Na5 {[%clk 0:02:17]} 9. Qa4+ {[%clk 0:02:26]}  c6 {[%clk 0:02:17]} 10. c5 {[%clk 0:01:58]}  Be7 {[%clk 0:01:58]} 11. Nd2 {[%clk 0:01:44]}  b5 {[%clk 0:01:48]} 12. cxb6 {[%clk 0:01:42]}  Qxb6 {[%clk 0:01:49]} 13. b3 {[%clk 0:00:59]}  O-O {[%clk 0:01:47]} 14. Be2 {[%clk 0:00:53]}  c5 {[%clk 0:01:44]} 15. O-O {[%clk 0:00:43]}  cxd4 {[%clk 0:01:30]} 16. Qxd4 {[%clk 0:00:35]}  Qxd4 {[%clk 0:01:27]} 17. exd4 {[%clk 0:00:36]}  Bb4 {[%clk 0:01:27]} 18. Ncb1 {[%clk 0:00:24]}  Rfc8 {[%clk 0:01:18]} 19. a3 {[%clk 0:00:22]}  Bxd2 {[%clk 0:01:18]} 20. Nxd2 {[%clk 0:00:22]}  Rc2 {[%clk 0:01:18]} 21. Rfd1 {[%clk 0:00:23]}  Rxd2 {[%clk 0:01:11]} 22. Rxd2 {[%clk 0:00:18]}  Nxb3 {[%clk 0:01:12]} 23. Rda2 {[%clk 0:00:18]}  Nxa1 {[%clk 0:01:12]} 24. Rxa1 {[%clk 0:00:19]}  Ne4 {[%clk 0:01:02]} 25. Be7 {[%clk 0:00:16]}  a5 {[%clk 0:00:58]} 26. h3 {[%clk 0:00:14]}  Ra7 {[%clk 0:00:58]} 27. Bd8 {[%clk 0:00:13]}  Nc3 {[%clk 0:00:56]} 28. Bf1 {[%clk 0:00:12]}  Nb5 {[%clk 0:00:54]} 29. Bxb5 {[%clk 0:00:11]}  Rb7 {[%clk 0:00:50]} 30. a4 {[%clk 0:00:11]}  Ra7 {[%clk 0:00:47]} 31. Bb6 {[%clk 0:00:10]}  Ra8 {[%clk 0:00:47]} 32. Rc1 {[%clk 0:00:10]}  Kh7 {[%clk 0:00:45]} 33. f3 {[%clk 0:00:10]}  f6 {[%clk 0:00:44]} 34. Kf2 {[%clk 0:00:09]}  e5 {[%clk 0:00:44]} 35. Ke3 {[%clk 0:00:09]}  exd4+ {[%clk 0:00:42]} 36. Kxd4 {[%clk 0:00:10]}  Be6 {[%clk 0:00:41]} 37. Rc7 {[%clk 0:00:10]}  Kg6 {[%clk 0:00:41]} 38. g4 {[%clk 0:00:10]}  h5 {[%clk 0:00:41]} 39. Re7 {[%clk 0:00:09]}  Bc8 {[%clk 0:00:38]} 40. Re8 {[%clk 0:00:08]}  Bb7 {[%clk 0:00:37]} 41. Rxa8 {[%clk 0:00:08]}  Bxa8 {[%clk 0:00:38]} 42. Bxa5 {[%clk 0:00:07]}  hxg4 {[%clk 0:00:39]} 43. hxg4 {[%clk 0:00:08]}  Kg5 {[%clk 0:00:38]} 44. Bd2+ {[%clk 0:00:09]}  Kh4 {[%clk 0:00:39]} 45. a5 {[%clk 0:00:08]}  Kg3 {[%clk 0:00:39]} 46. Ke3 {[%clk 0:00:08]}  d4+ {[%clk 0:00:40]} 47. Kxd4 {[%clk 0:00:08]}  Kxf3 {[%clk 0:00:39]} 48. g5 {[%clk 0:00:08]}  fxg5 {[%clk 0:00:38]} 49. Bxg5 {[%clk 0:00:09]}  Kg4 {[%clk 0:00:37]} 50. Be7 {[%clk 0:00:08]}  g5 {[%clk 0:00:37]} 51. Kc5 {[%clk 0:00:08]}  Kf5 {[%clk 0:00:36]} 52. Bc6 {[%clk 0:00:06]}  Ke6 {[%clk 0:00:34]} 53. Bxg5 {[%clk 0:00:06]} 1-0


[Site "https://www.chess.com"]

[Event "Titled Tuesday Blitz November 01 Late 2022"]
[White "Malka, Samuel"]
[Black "Haszon, David"]
[WhiteFideId "20643675"]
[BlackFideId "733610"]
[WhiteElo "2456"]
[BlackElo "2211"]
[Result "1-0"]
[Round "08"]
[TimeControl "180+1"]
[Date "2022.11.02"]
[WhiteClock "0:00:13"]
[BlackClock "0:00:03"]

1. d4 {[%clk 0:03:00]}  Nf6 {[%clk 0:02:59]} 2. c4 {[%clk 0:02:59]}  g6 {[%clk 0:02:59]} 3. Nc3 {[%clk 0:03:00]}  d5 {[%clk 0:02:56]} 4. Nf3 {[%clk 0:02:56]}  Bg7 {[%clk 0:02:56]} 5. Qb3 {[%clk 0:02:55]}  dxc4 {[%clk 0:02:56]} 6. Qxc4 {[%clk 0:02:55]}  Be6 {[%clk 0:02:56]} 7. Qa4+ {[%clk 0:02:47]}  Bd7 {[%clk 0:02:55]} 8. Qa3 {[%clk 0:02:45]}  O-O {[%clk 0:02:54]} 9. e4 {[%clk 0:02:40]}  Bg4 {[%clk 0:02:48]} 10. Be3 {[%clk 0:02:37]}  Nc6 {[%clk 0:02:46]} 11. d5 {[%clk 0:02:31]}  Bxf3 {[%clk 0:02:45]} 12. gxf3 {[%clk 0:02:32]}  Ne5 {[%clk 0:02:44]} 13. Be2 {[%clk 0:02:32]}  c6 {[%clk 0:02:38]} 14. Rd1 {[%clk 0:02:29]}  cxd5 {[%clk 0:02:37]} 15. Nxd5 {[%clk 0:02:30]}  Nxd5 {[%clk 0:02:37]} 16. Rxd5 {[%clk 0:02:31]}  Qc8 {[%clk 0:02:34]} 17. Qb3 {[%clk 0:01:53]}  e6 {[%clk 0:02:31]} 18. Rc5 {[%clk 0:01:47]}  Qd8 {[%clk 0:02:29]} 19. f4 {[%clk 0:01:42]}  Nc6 {[%clk 0:02:09]} 20. e5 {[%clk 0:01:28]}  Nd4 {[%clk 0:02:04]} 21. Qd1 {[%clk 0:01:28]}  b6 {[%clk 0:01:47]} 22. Rc1 {[%clk 0:01:20]}  Nxe2 {[%clk 0:01:46]} 23. Qxd8 {[%clk 0:01:18]}  Rfxd8 {[%clk 0:01:46]} 24. Kxe2 {[%clk 0:01:18]}  Rac8 {[%clk 0:01:43]} 25. Rxc8 {[%clk 0:01:01]}  Rxc8 {[%clk 0:01:44]} 26. Rc1 {[%clk 0:00:58]}  Rxc1 {[%clk 0:01:44]} 27. Bxc1 {[%clk 0:00:59]}  Kf8 {[%clk 0:01:44]} 28. Ke3 {[%clk 0:00:53]}  Ke8 {[%clk 0:01:44]} 29. b4 {[%clk 0:00:47]}  Kd7 {[%clk 0:01:45]} 30. b5 {[%clk 0:00:46]}  Bf8 {[%clk 0:01:40]} 31. Ke4 {[%clk 0:00:43]}  Bb4 {[%clk 0:01:32]} 32. a4 {[%clk 0:00:39]}  Be7 {[%clk 0:01:27]} 33. Be3 {[%clk 0:00:39]}  Kc7 {[%clk 0:01:25]} 34. Bd4 {[%clk 0:00:38]}  Bf8 {[%clk 0:01:24]} 35. f3 {[%clk 0:00:38]}  Be7 {[%clk 0:01:24]} 36. h3 {[%clk 0:00:38]}  h5 {[%clk 0:01:23]} 37. Bc3 {[%clk 0:00:37]}  Bc5 {[%clk 0:01:21]} 38. Be1 {[%clk 0:00:31]}  Kd7 {[%clk 0:01:21]} 39. Bh4 {[%clk 0:00:32]}  Be7 {[%clk 0:01:05]} 40. Bf2 {[%clk 0:00:30]}  Bd8 {[%clk 0:01:02]} 41. a5 {[%clk 0:00:26]}  bxa5 {[%clk 0:00:44]} 42. Bxa7 {[%clk 0:00:26]}  Be7 {[%clk 0:00:43]} 43. Kd4 {[%clk 0:00:25]}  a4 {[%clk 0:00:42]} 44. Kc4 {[%clk 0:00:25]}  Kc7 {[%clk 0:00:40]} 45. Be3 {[%clk 0:00:23]}  a3 {[%clk 0:00:36]} 46. Kb3 {[%clk 0:00:23]}  Kb7 {[%clk 0:00:37]} 47. Bd4 {[%clk 0:00:22]}  Bf8 {[%clk 0:00:33]} 48. Be3 {[%clk 0:00:22]}  Kc7 {[%clk 0:00:32]} 49. Bd4 {[%clk 0:00:20]}  Kb7 {[%clk 0:00:24]} 50. Ka4 {[%clk 0:00:20]}  Bh6 {[%clk 0:00:16]} 51. Kxa3 {[%clk 0:00:18]}  Bxf4 {[%clk 0:00:17]} 52. Kb4 {[%clk 0:00:18]}  Bd2+ {[%clk 0:00:15]} 53. Kc5 {[%clk 0:00:18]}  Kc7 {[%clk 0:00:10]} 54. b6+ {[%clk 0:00:18]}  Kd7 {[%clk 0:00:10]} 55. Kb5 {[%clk 0:00:17]}  g5 {[%clk 0:00:05]} 56. Ka6 {[%clk 0:00:13]}  Kc8 {[%clk 0:00:03]} 57. Ka7 {[%clk 0:00:13]} 1-0


[Site "https://www.chess.com"]

[Event "Titled Tuesday Blitz November 01 Late 2022"]
[White "Mekhitarian, Krikor Sevag"]
[Black "Rosen, Eric"]
[WhiteFideId "2107660"]
[BlackFideId "2032562"]
[WhiteElo "2614"]
[BlackElo "2362"]
[Result "0-1"]
[Round "08"]
[TimeControl "180+1"]
[Date "2022.11.02"]
[WhiteClock "0:00:01"]
[BlackClock "0:00:04"]

1. e4 {[%clk 0:02:59]}  c5 {[%clk 0:02:59]} 2. Nf3 {[%clk 0:02:52]}  d6 {[%clk 0:02:56]} 3. d4 {[%clk 0:02:49]}  Nf6 {[%clk 0:02:56]} 4. Nc3 {[%clk 0:02:48]}  cxd4 {[%clk 0:02:56]} 5. Nxd4 {[%clk 0:02:49]}  g6 {[%clk 0:02:53]} 6. g3 {[%clk 0:02:46]}  Bg7 {[%clk 0:02:51]} 7. Bg2 {[%clk 0:02:45]}  O-O {[%clk 0:02:52]} 8. O-O {[%clk 0:02:45]}  Bd7 {[%clk 0:02:50]} 9. Re1 {[%clk 0:02:36]}  Nc6 {[%clk 0:02:50]} 10. Nde2 {[%clk 0:02:35]}  Rc8 {[%clk 0:02:48]} 11. Bg5 {[%clk 0:02:26]}  Re8 {[%clk 0:02:38]} 12. Nd5 {[%clk 0:02:23]}  Nxd5 {[%clk 0:02:31]} 13. exd5 {[%clk 0:02:24]}  Ne5 {[%clk 0:02:32]} 14. c3 {[%clk 0:02:17]}  Qb6 {[%clk 0:02:24]} 15. Qb3 {[%clk 0:02:08]}  Qa6 {[%clk 0:02:01]} 16. Qd1 {[%clk 0:01:49]}  Nd3 {[%clk 0:01:56]} 17. Rf1 {[%clk 0:01:43]}  Nxb2 {[%clk 0:01:56]} 18. Qd2 {[%clk 0:01:42]}  Nc4 {[%clk 0:01:56]} 19. Qc1 {[%clk 0:01:39]}  Ne5 {[%clk 0:01:44]} 20. Nd4 {[%clk 0:01:35]}  Qd3 {[%clk 0:01:38]} 21. Rd1 {[%clk 0:01:05]}  Qxc3 {[%clk 0:01:33]} 22. Qxc3 {[%clk 0:01:01]}  Rxc3 {[%clk 0:01:34]} 23. Rab1 {[%clk 0:01:01]}  b6 {[%clk 0:01:26]} 24. h3 {[%clk 0:01:01]}  Nd3 {[%clk 0:01:04]} 25. Be3 {[%clk 0:00:59]}  Nc5 {[%clk 0:00:49]} 26. Nc6 {[%clk 0:00:51]}  Bxc6 {[%clk 0:00:47]} 27. dxc6 {[%clk 0:00:51]}  Rc8 {[%clk 0:00:47]} 28. Rb4 {[%clk 0:00:38]}  Kf8 {[%clk 0:00:45]} 29. h4 {[%clk 0:00:38]}  h5 {[%clk 0:00:45]} 30. g4 {[%clk 0:00:37]}  hxg4 {[%clk 0:00:25]} 31. Rxg4 {[%clk 0:00:36]}  Ne6 {[%clk 0:00:24]} 32. h5 {[%clk 0:00:33]}  gxh5 {[%clk 0:00:21]} 33. Rh4 {[%clk 0:00:33]}  Nd8 {[%clk 0:00:12]} 34. Rxh5 {[%clk 0:00:19]}  Nxc6 {[%clk 0:00:12]} 35. Be4 {[%clk 0:00:10]}  Ne5 {[%clk 0:00:10]} 36. Kg2 {[%clk 0:00:09]}  Ra3 {[%clk 0:00:08]} 37. Rdh1 {[%clk 0:00:07]}  Ke8 {[%clk 0:00:08]} 38. Rh7 {[%clk 0:00:07]}  Bf6 {[%clk 0:00:08]} 39. Bf5 {[%clk 0:00:07]}  e6 {[%clk 0:00:04]} 40. Bb1 {[%clk 0:00:06]}  Ke7 {[%clk 0:00:04]} 41. R7h3 {[%clk 0:00:03]}  Rg8+ {[%clk 0:00:05]} 42. Kf1 {[%clk 0:00:03]}  Nc4 {[%clk 0:00:05]} 43. Bc1 {[%clk 0:00:02]}  Rxh3 {[%clk 0:00:06]} 44. Rxh3 {[%clk 0:00:03]}  Ne5 {[%clk 0:00:06]} 45. Ra3 {[%clk 0:00:03]}  a5 {[%clk 0:00:06]} 46. Rb3 {[%clk 0:00:03]}  Nd7 {[%clk 0:00:07]} 47. Be3 {[%clk 0:00:03]}  Rh8 {[%clk 0:00:07]} 48. Ke2 {[%clk 0:00:03]}  Rb8 {[%clk 0:00:07]} 49. Bd3 {[%clk 0:00:03]}  Nc5 {[%clk 0:00:05]} 50. Bxc5 {[%clk 0:00:03]}  dxc5 {[%clk 0:00:06]} 51. Bc4 {[%clk 0:00:04]}  Bd4 {[%clk 0:00:06]} 52. f3 {[%clk 0:00:03]}  Kd6 {[%clk 0:00:07]} 53. Kd3 {[%clk 0:00:03]}  Kc6 {[%clk 0:00:07]} 54. Bb5+ {[%clk 0:00:03]}  Kc7 {[%clk 0:00:07]} 55. Rb1 {[%clk 0:00:04]}  Rg8 {[%clk 0:00:07]} 56. Re1 {[%clk 0:00:03]}  Rg3 {[%clk 0:00:08]} 57. Ke4 {[%clk 0:00:03]}  Kd6 {[%clk 0:00:05]} 58. Bc4 {[%clk 0:00:03]}  f5+ {[%clk 0:00:04]} 59. Kf4 {[%clk 0:00:03]}  Rg2 {[%clk 0:00:04]} 60. Rxe6+ {[%clk 0:00:03]}  Kd7 {[%clk 0:00:04]} 61. Rxb6 {[%clk 0:00:03]}  Rc2 {[%clk 0:00:03]} 62. Bd3 {[%clk 0:00:03]}  Rc3 {[%clk 0:00:03]} 63. Bxf5+ {[%clk 0:00:04]}  Kc7 {[%clk 0:00:03]} 64. Ra6 {[%clk 0:00:05]}  Ra3 {[%clk 0:00:02]} 65. Be6 {[%clk 0:00:05]}  Be3+ {[%clk 0:00:02]} 66. Ke4 {[%clk 0:00:05]}  Kb7 {[%clk 0:00:02]} 67. Rd6 {[%clk 0:00:04]}  Bc1 {[%clk 0:00:02]} 68. f4 {[%clk 0:00:04]}  Ra4+ {[%clk 0:00:03]} 69. Kd3 {[%clk 0:00:01]}  Bxf4 {[%clk 0:00:03]} 70. Bd5+ {[%clk 0:00:01]}  Kc7 {[%clk 0:00:02]} 71. Rc6+ {[%clk 0:00:02]}  Kd7 {[%clk 0:00:03]} 72. Rxc5 {[%clk 0:00:03]}  Kd6 {[%clk 0:00:04]} 73. Rb5 {[%clk 0:00:03]}  Be5 {[%clk 0:00:03]} 74. Bb3 {[%clk 0:00:03]}  Rd4+ {[%clk 0:00:03]} 75. Kc2 {[%clk 0:00:03]}  a4 {[%clk 0:00:04]} 76. Bf7 {[%clk 0:00:02]}  Kc6 {[%clk 0:00:04]} 77. Rb8 {[%clk 0:00:01]}  Rf4 {[%clk 0:00:04]} 0-1


[Site "https://www.chess.com"]

[Event "Titled Tuesday Blitz November 01 Late 2022"]
[White "Melikhov, Evgeny V."]
[Black "McConnell, Griffin"]
[WhiteFideId "4122046"]
[BlackFideId "30942551"]
[WhiteElo "2169"]
[BlackElo "2332"]
[Result "1/2-1/2"]
[Round "08"]
[TimeControl "180+1"]
[Date "2022.11.02"]
[WhiteClock "0:00:09"]
[BlackClock "0:00:12"]

1. d4 {[%clk 0:03:00]}  d5 {[%clk 0:02:59]} 2. c4 {[%clk 0:03:00]}  Nc6 {[%clk 0:02:59]} 3. e3 {[%clk 0:02:57]}  e5 {[%clk 0:02:59]} 4. dxe5 {[%clk 0:02:58]}  d4 {[%clk 0:02:57]} 5. a3 {[%clk 0:02:58]}  Nge7 {[%clk 0:02:46]} 6. Nf3 {[%clk 0:02:56]}  dxe3 {[%clk 0:02:44]} 7. Qxd8+ {[%clk 0:02:53]}  Nxd8 {[%clk 0:02:44]} 8. Bxe3 {[%clk 0:02:52]}  Ng6 {[%clk 0:02:44]} 9. Nc3 {[%clk 0:02:51]}  Bg4 {[%clk 0:02:37]} 10. Be2 {[%clk 0:02:47]}  c6 {[%clk 0:02:35]} 11. O-O-O {[%clk 0:02:38]}  Ne6 {[%clk 0:02:23]} 12. Rhe1 {[%clk 0:02:30]}  Bxf3 {[%clk 0:02:15]} 13. gxf3 {[%clk 0:02:29]}  Be7 {[%clk 0:02:08]} 14. Ne4 {[%clk 0:02:27]}  Nxe5 {[%clk 0:01:56]} 15. f4 {[%clk 0:02:26]}  Nd7 {[%clk 0:01:52]} 16. f5 {[%clk 0:02:24]}  Nec5 {[%clk 0:01:50]} 17. Nxc5 {[%clk 0:02:15]}  Nxc5 {[%clk 0:01:38]} 18. Bxc5 {[%clk 0:02:15]}  Bxc5 {[%clk 0:01:34]} 19. Bh5+ {[%clk 0:01:41]}  Be7 {[%clk 0:01:28]} 20. Re2 {[%clk 0:01:30]}  Rc8 {[%clk 0:01:18]} 21. f6 {[%clk 0:01:04]}  gxf6 {[%clk 0:01:16]} 22. Rg1 {[%clk 0:00:59]}  Kf8 {[%clk 0:01:10]} 23. Rge1 {[%clk 0:00:54]}  Rc7 {[%clk 0:01:03]} 24. Bg4 {[%clk 0:00:50]}  Rg8 {[%clk 0:01:01]} 25. Bf5 {[%clk 0:00:49]}  h5 {[%clk 0:00:54]} 26. h3 {[%clk 0:00:43]}  Rg5 {[%clk 0:00:53]} 27. Be4 {[%clk 0:00:38]}  Rc5 {[%clk 0:00:44]} 28. Bd3 {[%clk 0:00:35]}  a5 {[%clk 0:00:31]} 29. Kc2 {[%clk 0:00:31]}  a4 {[%clk 0:00:30]} 30. Kc3 {[%clk 0:00:26]}  b6 {[%clk 0:00:26]} 31. Re4 {[%clk 0:00:24]}  f5 {[%clk 0:00:24]} 32. Rf4 {[%clk 0:00:22]}  Bf6+ {[%clk 0:00:23]} 33. Kc2 {[%clk 0:00:19]}  Rd7 {[%clk 0:00:19]} 34. Rxf5 {[%clk 0:00:19]}  Rxf5 {[%clk 0:00:18]} 35. Bxf5 {[%clk 0:00:19]}  Rd4 {[%clk 0:00:17]} 36. Re4 {[%clk 0:00:18]}  Rxe4 {[%clk 0:00:16]} 37. Bxe4 {[%clk 0:00:18]}  c5 {[%clk 0:00:15]} 38. b4 {[%clk 0:00:17]}  axb3+ {[%clk 0:00:14]} 39. Kxb3 {[%clk 0:00:17]}  Ke7 {[%clk 0:00:13]} 40. Ka4 {[%clk 0:00:17]}  Kd6 {[%clk 0:00:13]} 41. Kb5 {[%clk 0:00:17]}  Kc7 {[%clk 0:00:14]} 42. Bd5 {[%clk 0:00:15]}  Bd4 {[%clk 0:00:12]} 43. f3 {[%clk 0:00:15]}  f6 {[%clk 0:00:12]} 44. a4 {[%clk 0:00:10]}  h4 {[%clk 0:00:12]} 45. Be6 {[%clk 0:00:09]}  Be3 {[%clk 0:00:11]} 46. Bf5 {[%clk 0:00:09]}  Bd4 {[%clk 0:00:11]} 47. Be6 {[%clk 0:00:09]}  Be3 {[%clk 0:00:11]} 48. Bf5 {[%clk 0:00:09]}  Bd4 {[%clk 0:00:12]} 49. Be6 {[%clk 0:00:09]} 1/2-1/2


[Site "https://www.chess.com"]

[Event "Titled Tuesday Blitz November 01 Late 2022"]
[White "Melikyan, Gnel"]
[Black "Mendez Fortes, Eduardo Jesus"]
[WhiteFideId "54109990"]
[BlackFideId "3502376"]
[WhiteElo "2138"]
[BlackElo "2307"]
[Result "0-1"]
[Round "08"]
[TimeControl "180+1"]
[Date "2022.11.02"]
[WhiteClock "0:00:30"]
[BlackClock "0:00:19"]

1. e4 {[%clk 0:02:58]}  e5 {[%clk 0:02:59]} 2. Nf3 {[%clk 0:02:58]}  Nc6 {[%clk 0:02:59]} 3. Bc4 {[%clk 0:02:58]}  Nf6 {[%clk 0:02:58]} 4. d3 {[%clk 0:02:56]}  Bc5 {[%clk 0:02:58]} 5. O-O {[%clk 0:02:56]}  O-O {[%clk 0:02:58]} 6. c3 {[%clk 0:02:56]}  d6 {[%clk 0:02:57]} 7. a4 {[%clk 0:02:54]}  a6 {[%clk 0:02:56]} 8. b4 {[%clk 0:02:53]}  Ba7 {[%clk 0:02:56]} 9. Be3 {[%clk 0:02:53]}  h6 {[%clk 0:02:55]} 10. Nbd2 {[%clk 0:02:52]}  Ne7 {[%clk 0:02:55]} 11. Qe2 {[%clk 0:02:50]}  Ng6 {[%clk 0:02:55]} 12. g3 {[%clk 0:02:43]}  Bg4 {[%clk 0:02:47]} 13. Rfe1 {[%clk 0:02:39]}  c6 {[%clk 0:02:47]} 14. a5 {[%clk 0:02:36]}  d5 {[%clk 0:02:46]} 15. exd5 {[%clk 0:02:35]}  cxd5 {[%clk 0:02:44]} 16. Bxa7 {[%clk 0:02:32]}  Rxa7 {[%clk 0:02:30]} 17. Bb3 {[%clk 0:02:31]}  Ra8 {[%clk 0:02:22]} 18. h3 {[%clk 0:02:30]}  Bxf3 {[%clk 0:02:04]} 19. Qxf3 {[%clk 0:02:30]}  Qd7 {[%clk 0:01:57]} 20. c4 {[%clk 0:02:25]}  Qxh3 {[%clk 0:01:42]} 21. cxd5 {[%clk 0:02:21]}  Qd7 {[%clk 0:01:37]} 22. Ne4 {[%clk 0:02:15]}  Nxe4 {[%clk 0:01:37]} 23. Qxe4 {[%clk 0:02:12]}  Qd6 {[%clk 0:01:33]} 24. Rac1 {[%clk 0:02:09]}  Rac8 {[%clk 0:01:32]} 25. Rc4 {[%clk 0:02:01]}  Rcd8 {[%clk 0:01:30]} 26. Rc5 {[%clk 0:01:59]}  f5 {[%clk 0:01:25]} 27. Qc4 {[%clk 0:01:55]}  f4 {[%clk 0:01:23]} 28. Qe4 {[%clk 0:01:44]}  Rf6 {[%clk 0:01:02]} 29. d4 {[%clk 0:01:26]}  exd4 {[%clk 0:00:58]} 30. g4 {[%clk 0:01:22]}  f3 {[%clk 0:00:53]} 31. Qxd4 {[%clk 0:01:15]}  Rf4 {[%clk 0:00:44]} 32. Re4 {[%clk 0:01:15]}  Rdf8 {[%clk 0:00:36]} 33. Bc2 {[%clk 0:01:10]}  Qd7 {[%clk 0:00:28]} 34. Rxf4 {[%clk 0:00:57]}  Nxf4 {[%clk 0:00:20]} 35. Kf1 {[%clk 0:00:45]}  Qxg4 {[%clk 0:00:19]} 36. Qe3 {[%clk 0:00:30]}  Qh3+ {[%clk 0:00:19]} 0-1


[Site "https://www.chess.com"]